bitfinex/quotes_SOLUSD_20240827
["timestamp","ask_amount","ask_price","bid_price","bid_amount"]
[1724721071204,37.00219316,158.44,158.37,22.099]
[1724721071406,6.82010453,158.43,158.37,22.099]
[1724721071599,0.50820453,158.42,158.37,22.099]
[1724721072006,20.50820453,158.42,158.37,22.099]
[1724721072816,20.0,158.42,158.37,15.7851]
[1724721073130,20.50820453,158.43,158.37,15.7851]
[1724721073431,0.50820453,158.42,158.37,15.7851]
[1724721073733,0.50820453,158.42,158.39,6.3134]
[1724721073911,0.50820453,158.43,158.39,6.3134]
[1724721075119,6.82010453,158.43,158.37,22.099]
[1724721075312,20.0,158.42,158.37,22.099]
[1724721075507,0.50820453,158.41,158.37,22.099]
[1724721076526,6.82100453,158.41,158.37,15.7851]
[1724721076733,6.3124,158.42,158.37,15.7851]
[1724721077054,6.82010453,158.43,158.37,15.7851]
[1724721077211,20.50820453,158.42,158.37,15.7851]
[1724721078940,20.50820453,158.42,158.38,6.3138]
[1724721080118,20.50820453,158.42,158.37,22.0993]
[1724721080715,26.82080453,158.42,158.37,22.0993]
[1724721081614,26.3126,158.42,158.38,6.3139]
[1724721081810,20.0,158.42,158.38,6.3139]
[1724721082341,20.50820453,158.42,158.38,6.3139]
[1724721088956,26.82050453,158.42,158.37,22.0993]
[1724721089853,20.50820453,158.42,158.38,6.3138]
[1724721090226,20.0,158.42,158.38,6.3138]
[1724721091562,32.26595279,158.42,158.38,6.3138]
[1724721091772,32.77415732,158.42,158.38,6.3138]
[1724721095260,39.08655732,158.42,158.38,6.3138]
[1724721095458,6.3128,158.41,158.37,22.0993]
[1724721095667,0.50820453,158.4,158.37,22.0993]
[1724721099150,6.3128,158.41,158.37,22.0993]
[1724721100975,19.08725732,158.4,158.35,6.3147]
[1724721101152,0.50820453,158.39,158.35,6.3147]
[1724721101851,12.26595279,158.38,158.35,6.3147]
[1724721102052,0.50820453,158.37,158.35,6.3147]
[1724721109192,0.50820453,158.37,158.34,15.7884]
[1724721111175,6.315,158.36,158.31,6.3164]
[1724721111386,12.77415732,158.35,158.28,15.9089]
[1724721111576,12.26595279,158.33,158.29,1.58178441]
[1724721111759,0.50820453,158.32,158.3,1.58178441]
[1724721111960,0.50820453,158.32,158.26,5.75869446]
[1724721112161,0.50820453,158.32,158.27,2.84749333]
[1724721112459,0.50820453,158.32,158.28,1.58194074]
[1724721112659,0.50820453,158.32,158.29,7.89934074]
[1724721112881,0.50820453,158.32,158.29,6.3174]
[1724721115980,12.26595279,158.33,158.29,6.3174]
[1724721116803,0.50820453,158.32,158.28,6.3178]
[1724721118279,12.26595279,158.31,158.28,6.3178]
[1724721118479,0.50820453,158.3,158.28,6.3178]
[1724721118875,12.26595279,158.31,158.28,6.3178]
[1724721121678,0.50820453,158.3,158.28,6.3178]
[1724721121881,12.26595279,158.31,158.29,6.3175]
[1724721123876,12.26595279,158.33,158.29,6.3175]
[1724721124076,6.0095,158.34,158.26,31.5926]
[1724721124274,6.0095,158.34,158.31,22.1076]
[1724721124275,20.50820453,158.33,158.31,22.1076]
[1724721124476,0.50820453,158.32,158.31,22.1076]
[1724721125098,0.50820453,158.32,158.31,15.791]
[1724721125410,20.0,158.33,158.3,6.317]
[1724721125608,20.50820453,158.33,158.3,6.317]
[1724721125966,20.0,158.33,158.3,6.317]
[1724721126493,20.50820453,158.33,158.3,6.317]
[1724721128307,6.0095,158.38,158.26,31.5926]
[1724721128505,28.69075279,158.39,158.35,6.3151]
[1724721128804,0.50820453,158.39,158.36,6.3146]
[1724721129101,0.50820453,158.39,158.33,15.7897]
[1724721129102,0.50820453,158.39,158.35,6.315]
[1724721129904,12.77415732,158.4,158.36,6.3147]
[1724721130081,20.0,158.39,158.36,6.3147]
[1724721130284,20.50820453,158.39,158.36,6.3147]
[1724721135796,12.26595279,158.38,158.35,15.7871]
[1724721135986,0.50820453,158.37,158.35,15.7871]
[1724721139702,0.50820453,158.37,158.34,6.3152]
[1724721141093,15.8235,158.47,158.42,6.3122]
[1724721141315,15.8235,158.47,158.4,15.7822]
[1724721141598,15.8235,158.47,158.41,1.26249509]
[1724721141810,15.8235,158.47,158.4,15.7822]
[1724721142170,15.8235,158.47,158.43,6.3118]
[1724721143196,20.0,158.46,158.43,6.3118]
[1724721146581,22.531,158.51,158.43,15.7795]
[1724721146780,32.26595279,158.5,158.45,6.311]
[1724721147097,16.2221,158.51,158.44,1.26226746]
[1724721148388,20.0,158.5,158.47,6.3103]
[1724721148592,12.26595279,158.48,158.44,6.3115]
[1724721148894,0.50820453,158.47,158.44,6.3115]
[1724721149313,12.26595279,158.48,158.44,6.3115]
[1724721149482,12.26595279,158.48,158.45,6.3111]
[1724721150805,12.26595279,158.48,158.44,6.3114]
[1724721151103,0.50820453,158.47,158.44,6.3114]
[1724721151400,12.77415732,158.48,158.45,6.3111]
[1724721152284,12.26595279,158.48,158.45,6.3111]
[1724721153679,38.57515279,158.5,158.45,6.3111]
[1724721153884,32.26595279,158.5,158.45,6.3111]
[1724721154884,32.26595279,158.5,158.46,6.3107]
[1724721155201,32.77415732,158.5,158.46,6.3107]
[1724721156988,16.2221,158.55,158.5,6.3091]
[1724721157195,6.6237,158.56,158.48,15.774]
[1724721157196,6.6237,158.56,158.48,12.26595279]
[1724721157381,22.5276,158.59,158.51,15.7713]
[1724721157580,34.79355279,158.59,158.52,1.26159376]
[1724721157802,28.48805279,158.59,158.54,6.3075]
[1724721158785,20.0,158.58,158.54,6.3075]
[1724721159721,20.50820453,158.58,158.51,15.7713]
[1724721160006,20.50820453,158.58,158.53,6.3079]
[1724721162787,20.0,158.58,158.53,6.3079]
[1724721162991,20.0,158.58,158.52,1.2614384]
[1724721163187,20.0,158.58,158.54,6.3075]
[1724721164115,25.19445279,158.61,158.55,6.3069]
[1724721164288,20.0,158.6,158.55,6.3069]
[1724721165228,20.50820453,158.6,158.55,6.3069]
[1724721165385,26.81340453,158.6,158.55,6.3069]
[1724721168211,26.3052,158.6,158.55,6.3069]
[1724721168794,26.81340453,158.6,158.55,6.3069]
[1724721172698,20.0,158.6,158.56,6.3067]
[1724721174302,20.0,158.6,158.57,6.3063]
[1724721176223,20.0,158.61,158.57,6.3063]
[1724721176434,6.6237,158.65,158.59,6.3053]
[1724721176720,46.50499291,158.66,158.59,6.3053]
[1724721177811,36.89939291,158.66,158.61,6.3047]
[1724721180712,65.50820453,158.65,158.59,22.0685]
[1724721180911,31.10479744,158.64,158.59,22.0685]
[1724721181307,30.59659291,158.64,158.6,6.305]
[1724721181520,36.89939291,158.66,158.6,6.305]
[1724721181712,20.0,158.65,158.61,6.3047]
[1724721181915,20.0,158.66,158.61,6.3047]
[1724721184232,30.59659291,158.68,158.62,17.02161056]
[1724721184415,30.59659291,158.68,158.62,15.7607]
[1724721185712,20.0,158.67,158.63,6.3038]
[1724721186217,20.50820453,158.68,158.63,6.3038]
[1724721186822,26.81020453,158.68,158.63,6.3038]
[1724721187238,20.0,158.68,158.63,6.3038]
[1724721187432,20.50820453,158.68,158.63,6.3038]
[1724721188115,32.73548096,158.68,158.63,6.3038]
[1724721189229,39.03748096,158.68,158.63,6.3038]
[1724721190130,26.302,158.68,158.63,6.3038]
[1724721191039,26.81020453,158.68,158.63,6.3038]
[1724721192238,0.50820453,158.67,158.63,6.3038]
[1724721192820,26.81020453,158.68,158.63,6.3038]
[1724721200148,26.81020453,158.68,158.62,15.7607]
[1724721200149,19.03788096,158.67,158.62,15.7607]
[1724721200456,6.3047,158.62,158.56,6.3067]
[1724721200755,32.22727643,158.61,158.55,6.3374]
[1724721201829,32.22727643,158.61,158.57,6.3063]
[1724721202025,39.04018096,158.61,158.56,6.3067]
[1724721202334,32.22727643,158.61,158.55,15.767]
[1724721202527,12.22727643,158.63,158.57,15.7649]
[1724721202743,20.0,158.62,158.58,6.3058]
[1724721203261,26.3045,158.62,158.57,22.0711]
[1724721204229,20.0,158.62,158.57,22.0711]
[1724721206765,12.22727643,158.63,158.57,15.7649]
[1724721206963,0.50820453,158.66,158.6,15.7626]
[1724721207265,6.3027,158.67,158.6,15.7626]
[1724721208565,6.81090453,158.67,158.6,15.7626]
[1724721208746,20.0,158.66,158.62,6.3042]
[1724721209835,6.3012,158.7,158.65,6.3031]
[1724721210043,0.50820453,158.69,158.65,6.3031]
[1724721210244,12.22727643,158.67,158.62,22.0643]
[1724721211444,12.22727643,158.67,158.63,6.3039]
[1724721211975,18.52977643,158.67,158.62,22.0643]
[1724721212655,0.50820453,158.66,158.62,22.0643]
[1724721215144,12.22727643,158.63,158.59,6.3051]
[1724721215347,12.22727643,158.63,158.58,15.7641]
[1724721215348,12.22727643,158.61,158.58,15.7641]
[1724721215574,45.0,158.66,158.58,15.7641]
[1724721215774,12.22727643,158.64,158.58,15.7641]
[1724721216675,19.03898096,158.64,158.59,6.3054]
[1724721218591,12.22727643,158.64,158.6,6.305]
[1724721220057,12.73548096,158.64,158.6,6.305]
[1724721220263,19.03918096,158.64,158.59,6.3054]
[1724721220980,18.53097643,158.64,158.59,6.3054]
[1724721222468,6.304,158.63,158.58,22.07]
[1724721222657,0.50820453,158.62,158.58,22.07]
[1724721222856,12.73548096,158.62,158.58,22.07]
[1724721223282,12.22727643,158.6,158.55,15.7678]
[1724721223450,12.22727643,158.6,158.56,6.3066]
[1724721223649,19.04068096,158.6,158.55,15.7678]
[1724721223854,19.04068096,158.6,158.55,22.0747]
[1724721224267,12.22727643,158.58,158.51,31.6282]
[1724721224482,0.50820453,158.57,158.52,1.57950778]
[1724721224681,0.50820453,158.57,158.53,1.57950778]
[1724721224990,12.22727643,158.56,158.51,31.6282]
[1724721225169,12.22727643,158.56,158.52,1.5795944]
[1724721225365,12.22727643,158.56,158.51,31.6282]
[1724721225675,12.22727643,158.56,158.53,6.3079]
[1724721226653,12.22727643,158.58,158.53,6.3079]
[1724721227261,6.3056,158.59,158.54,6.3075]
[1724721227466,6.81380453,158.59,158.54,6.3075]
[1724721229297,58.2029,158.65,158.55,1.26139264]
[1724721229298,6.3039,158.63,158.55,1.26139264]
[1724721229477,20.0,158.62,158.55,1.26139264]
[1724721229673,20.0,158.62,158.53,12.22727643]
[1724721229976,20.50820453,158.62,158.53,12.22727643]
[1724721230466,20.50820453,158.62,158.54,1.57922773]
[1724721230666,26.81260453,158.62,158.57,6.3063]
[1724721231386,26.3044,158.62,158.57,6.3063]
[1724721231687,26.3044,158.62,158.57,7.56747847]
[1724721232082,6.3049,158.61,158.56,22.0727]
[1724721234170,26.3044,158.62,158.57,1.26113109]
[1724721234370,12.22727643,158.63,158.57,7.56713109]
[1724721234570,18.53117643,158.63,158.57,7.56713109]
[1724721234807,20.0,158.62,158.57,7.56713109]
[1724721235366,20.0,158.62,158.57,6.306]
[1724721235977,0.50820453,158.61,158.57,6.306]
[1724721236506,12.73548096,158.61,158.57,6.306]
[1724721241097,12.22727643,158.61,158.57,6.306]
[1724721243302,12.73548096,158.61,158.57,6.306]
[1724721243507,0.50820453,158.6,158.57,6.306]
[1724721244082,12.22727643,158.61,158.57,6.306]
[1724721244436,12.22727643,158.61,158.56,15.766]
[1724721244581,12.22727643,158.59,158.53,15.7697]
[1724721244780,0.50820453,158.58,158.53,15.7697]
[1724721245700,0.50820453,158.58,158.54,6.3074]
[1724721246521,18.53277643,158.59,158.54,6.3074]
[1724721250023,0.50820453,158.58,158.54,6.3074]
[1724721250405,12.22727643,158.55,158.51,6.3083]
[1724721250610,0.50820453,158.54,158.51,6.3083]
[1724721251127,12.22727643,158.53,158.5,22.0817]
[1724721251502,18.53527643,158.53,158.48,6.3097]
[1724721251816,12.22727643,158.51,158.47,6.3102]
[1724721252015,18.53527643,158.53,158.48,7.57157482]
[1724721252227,18.53527643,158.53,158.48,6.3097]
[1724721253000,12.22727643,158.53,158.48,6.3097]
[1724721255747,12.73548096,158.53,158.48,6.3097]
[1724721257323,12.22727643,158.51,158.47,6.3102]
[1724721257720,12.22727643,158.51,158.46,15.7761]
[1724721257721,12.22727643,158.51,158.48,6.3099]
[1724721259310,12.22727643,158.53,158.49,6.3095]
[1724721259740,12.22727643,158.53,158.46,15.7761]
[1724721259921,18.53527643,158.53,158.46,15.7761]
[1724721260142,18.53527643,158.53,158.47,1.26186495]
[1724721260820,18.53527643,158.53,158.48,6.3098]
[1724721262053,12.22727643,158.51,158.48,6.3098]
[1724721267815,12.22727643,158.51,158.47,6.3103]
[1724721268026,12.73548096,158.51,158.47,6.3103]
[1724721270049,12.22727643,158.51,158.47,6.3103]
[1724721273521,12.22727643,158.51,158.48,6.3095]
[1724721275928,12.22727643,158.51,158.47,6.3102]
[1724721276641,12.22727643,158.49,158.46,15.7761]
[1724721276948,21.6505,158.53,158.45,6.3107]
[1724721276949,12.22727643,158.47,158.45,6.3107]
[1724721279742,12.22727643,158.49,158.45,6.3107]
[1724721280853,18.53757643,158.47,158.43,15.7794]
[1724721281153,12.22727643,158.45,158.42,6.3122]
[1724721281560,0.50820453,158.44,158.41,6.3126]
[1724721281931,12.73548096,158.45,158.41,6.3126]
[1724721282837,12.22727643,158.43,158.4,22.0956]
[1724721284468,6.3108,158.46,158.41,7.57512008]
[1724721284751,32.73548096,158.45,158.41,6.3126]
[1724721285565,12.22727643,158.43,158.41,6.3126]
[1724721286877,12.22727643,158.43,158.32,16.6361]
[1724721287077,6.1509,158.41,158.33,15.7895]
[1724721287376,20.50820453,158.4,158.33,15.7895]
[1724721287548,12.22727643,158.37,158.35,6.3149]
[1724721288069,12.22727643,158.37,158.34,6.3154]
[1724721288282,12.22727643,158.35,158.32,6.3159]
[1724721288576,12.22727643,158.35,158.29,15.7929]
[1724721289361,12.22727643,158.35,158.3,6.3167]
[1724721289362,12.73548096,158.35,158.3,6.3167]
[1724721290275,12.22727643,158.35,158.3,6.3167]
[1724721290457,12.73548096,158.35,158.3,6.3167]
[1724721292153,12.22727643,158.33,158.3,6.3167]
[1724721293069,12.22727643,158.33,158.29,15.7929]
[1724721294452,29.30731038,158.4,158.37,6.3142]
[1724721294692,22.6995,158.4,158.37,6.314]
[1724721294892,12.22727643,158.39,158.31,15.7914]
[1724721295176,12.22727643,158.34,158.27,15.7955]
[1724721295384,0.50820453,158.33,158.28,6.3178]
[1724721295551,12.22727643,158.34,158.28,6.3178]
[1724721295888,12.22727643,158.34,158.29,6.3174]
[1724721296253,0.50820453,158.33,158.29,6.3174]
[1724721296454,12.22727643,158.34,158.29,6.3174]
[1724721296885,0.50820453,158.36,158.31,15.7916]
[1724721297057,12.22727643,158.38,158.32,1.26302321]
[1724721297395,20.0,158.37,158.32,7.57912321]
[1724721297759,20.0,158.37,158.32,6.3161]
[1724721298095,20.0,158.37,158.31,15.7916]
[1724721298378,12.73548096,158.36,158.31,15.7916]
[1724721298986,12.22727643,158.36,158.31,15.7916]
[1724721299364,12.22727643,158.36,158.31,17.05480447]
[1724721300281,12.73548096,158.36,158.31,15.7916]
[1724721300868,0.50820453,158.35,158.31,15.7916]
[1724721301280,0.50820453,158.39,158.33,6.3157]
[1724721301482,6.5823,158.45,158.36,28.01367643]
[1724721301779,6.5823,158.45,158.37,1.26249937]
[1724721301987,18.80957643,158.45,158.36,12.22727643]
[1724721302275,18.80957643,158.45,158.39,6.3132]
[1724721303463,20.0,158.44,158.39,6.3132]
[1724721304162,20.50820453,158.44,158.39,6.3132]
[1724721304674,30.65519882,158.43,158.35,22.1016]
[1724721304979,20.50820453,158.42,158.35,15.7868]
[1724721305282,20.0,158.42,158.35,15.7868]
[1724721305583,6.5823,158.45,158.4,6.313]
[1724721305796,6.5823,158.45,158.35,15.7868]
[1724721305797,6.5823,158.45,158.38,6.3137]
[1724721305966,45.0,158.44,158.38,6.3137]
[1724721306469,37.74570335,158.45,158.38,6.3137]
[1724721307081,20.0,158.44,158.38,6.3137]
[1724721308072,20.0,158.44,158.39,1.26255156]
[1724721308268,20.50820453,158.44,158.38,6.3137]
[1724721309581,20.0,158.44,158.38,6.3137]
[1724721312781,20.50820453,158.44,158.38,6.3137]
[1724721313169,20.0,158.44,158.38,6.3137]
[1724721313370,20.0,158.44,158.39,6.3135]
[1724721313570,20.50820453,158.44,158.39,6.3135]
[1724721313891,20.0,158.44,158.39,6.3135]
[1724721315374,0.50820453,158.43,158.39,6.3135]
[1724721318294,20.0,158.44,158.42,6.3123]
[1724721318682,20.0,158.45,158.42,6.3123]
[1724721319373,20.0,158.45,158.41,22.0941]
[1724721319572,20.0,158.45,158.42,6.3122]
[1724721319891,6.3099,158.48,158.42,6.3122]
[1724721320992,30.65519882,158.48,158.41,15.7814]
[1724721321296,36.96589882,158.46,158.4,6.3131]
[1724721321496,20.50820453,158.45,158.4,6.3131]
[1724721322190,20.0,158.45,158.41,6.3127]
[1724721322569,20.0,158.46,158.41,6.3127]
[1724721324501,20.0,158.46,158.42,6.3122]
[1724721324694,20.0,158.47,158.42,7.57462817]
[1724721325285,20.0,158.47,158.43,1.26226607]
[1724721326103,20.0,158.47,158.42,7.5744541]
[1724721326312,20.0,158.47,158.43,1.26226049]
[1724721326475,12.258608,158.48,158.43,7.57406049]
[1724721326670,20.0,158.47,158.43,7.57406049]
[1724721327015,20.0,158.47,158.43,6.3118]
[1724721329114,20.0,158.47,158.44,7.5737179]
[1724721329282,35.051108,158.5,158.44,7.5737179]
[1724721329606,20.0,158.49,158.44,7.5737179]
[1724721330804,18.567808,158.5,158.44,7.5737179]
[1724721330978,12.258608,158.51,158.45,1.26204157]
[1724721331387,12.258608,158.51,158.47,6.3103]
[1724721332275,20.0,158.5,158.46,6.3106]
[1724721332672,12.258608,158.47,158.4,15.6642]
[1724721332998,0.50820453,158.48,158.43,6.3118]
[1724721333316,12.258608,158.45,158.43,6.3118]
[1724721334085,12.258608,158.47,158.43,6.3118]
[1724721334282,12.258608,158.47,158.43,7.57397887]
[1724721335085,20.0,158.48,158.44,6.3115]
[1724721335302,12.258608,158.49,158.46,6.3106]
[1724721335506,18.567708,158.51,158.46,6.3106]
[1724721336786,20.0,158.5,158.46,6.3106]
[1724721337815,20.0,158.5,158.46,7.57255797]
[1724721338410,20.0,158.5,158.46,6.3106]
[1724721342819,20.0,158.5,158.43,15.7788]
[1724721343106,12.258608,158.47,158.43,15.7788]
[1724721343288,12.258608,158.47,158.45,6.3111]
[1724721344521,12.258608,158.49,158.45,6.3111]
[1724721345199,0.50820453,158.48,158.45,6.3111]
[1724721345401,12.258608,158.49,158.45,6.3111]
[1724721347418,6.3087,158.51,158.46,6.3107]
[1724721347419,18.567308,158.51,158.46,6.3107]
[1724721347629,20.0,158.5,158.46,7.57278347]
[1724721347926,20.0,158.5,158.46,6.3107]
[1724721350797,20.0,158.5,158.47,7.57216599]
[1724721351903,20.0,158.5,158.47,6.3102]
[1724721355130,20.0,158.5,158.46,6.3106]
[1724721355312,12.258608,158.51,158.47,7.57213632]
[1724721355829,12.258608,158.53,158.48,6.3097]
[1724721356013,20.0,158.52,158.48,6.3097]
[1724721356819,6.0108,158.57,158.46,15.6882]
[1724721357027,6.306,158.58,158.49,12.258608]
[1724721357347,6.306,158.58,158.5,1.26146077]
[1724721357503,12.258608,158.59,158.51,15.7709]
[1724721357709,12.258608,158.59,158.54,6.3072]
[1724721357913,18.564208,158.59,158.54,6.3072]
[1724721358106,18.564208,158.59,158.52,7.56933031]
[1724721358323,18.564208,158.59,158.53,6.3076]
[1724721358899,20.0,158.58,158.53,6.3076]
[1724721360017,20.0,158.58,158.54,1.26138012]
[1724721360219,20.0,158.58,158.53,6.3076]
[1724721362926,12.258608,158.55,158.51,22.0795]
[1724721364954,12.258608,158.57,158.52,6.3081]
[1724721366336,12.258608,158.57,158.52,7.56956838]
[1724721366536,12.258608,158.57,158.52,6.3081]
[1724721367826,12.258608,158.57,158.53,6.3079]
[1724721368622,12.76681253,158.57,158.53,6.3079]
[1724721370347,12.258608,158.57,158.53,6.3079]
[1724721372647,12.76681253,158.57,158.53,6.3079]
[1724721372953,26.306,158.58,158.54,1.26141283]
[1724721373342,20.0,158.58,158.54,1.26141283]
[1724721376050,12.4668,158.61,158.54,17.03021283]
[1724721376354,6.305,158.61,158.55,1.26132368]
[1724721377736,20.0,158.6,158.56,6.3066]
[1724721379260,20.0,158.6,158.57,1.2611662]
[1724721380738,6.3036,158.64,158.59,6.3054]
[1724721380943,18.293108,158.65,158.58,17.02478141]
[1724721381161,12.258608,158.61,158.52,47.7861]
[1724721381338,12.258608,158.61,158.53,45.0]
[1724721381546,12.258608,158.61,158.56,6.3067]
[1724721382657,12.258608,158.61,158.57,7.56746592]
[1724721383048,12.258608,158.61,158.57,6.3063]
[1724721383947,18.563308,158.61,158.56,6.3067]
[1724721384155,12.258608,158.61,158.56,6.3067]
[1724721384446,12.258608,158.61,158.56,7.56784978]
[1724721386172,6.304,158.63,158.57,6.3062]
[1724721386460,18.293108,158.65,158.58,1.2609156]
[1724721386872,12.258608,158.65,158.58,1.2609156]
[1724721387464,18.561808,158.65,158.59,6.3055]
[1724721387760,18.561808,158.65,158.6,1.26089813]
[1724721388137,18.561808,158.65,158.59,7.56639792]
[1724721388341,20.0,158.64,158.59,6.3055]
[1724721389371,12.258608,158.61,158.57,15.7651]
[1724721389537,12.258608,158.59,158.52,16.246]
[1724721389742,12.258608,158.61,158.57,6.3062]
[1724721390063,12.258608,158.61,158.58,1.26096451]
[1724721390248,12.258608,158.61,158.57,6.3062]
[1724721390747,12.258608,158.61,158.58,1.26097196]
[1724721390955,12.258608,158.63,158.58,7.56677196]
[1724721391272,6.3035,158.64,158.59,6.3055]
[1724721391481,6.3035,158.64,158.6,1.26093596]
[1724721391482,32.258608,158.63,158.6,1.26093596]
[1724721392155,20.0,158.63,158.6,1.26093596]
[1724721392354,20.0,158.64,158.6,1.26093596]
[1724721392573,6.5213,158.69,158.61,15.7611]
[1724721392756,6.5213,158.69,158.62,6.3043]
[1724721392757,25.081808,158.69,158.62,6.3043]
[1724721393062,25.081808,158.69,158.63,1.26064241]
[1724721393262,12.258608,158.67,158.63,1.26064241]
[1724721393472,12.258608,158.65,158.61,15.7611]
[1724721394880,12.258608,158.65,158.61,22.0656]
[1724721397058,12.258608,158.65,158.62,1.26076109]
[1724721397264,12.258608,158.65,158.61,22.0656]
[1724721397981,12.258608,158.65,158.62,1.26076067]
[1724721399073,6.302,158.68,158.62,7.56506067]
[1724721399289,20.0,158.67,158.62,7.56506067]
[1724721400301,20.0,158.67,158.62,1.26076067]
[1724721400505,22.7771,158.7,158.62,1.26076067]
[1724721400780,12.89493179,158.72,158.64,15.7588]
[1724721401085,12.89493179,158.72,158.65,1.2602628]
[1724721401284,12.89493179,158.72,158.64,15.7588]
[1724721401468,25.15353979,158.72,158.64,15.7588]
[1724721401668,12.258608,158.7,158.64,22.0621]
[1724721402471,12.258608,158.66,158.62,6.304]
[1724721402793,12.258608,158.66,158.61,6.3047]
[1724721405068,12.258608,158.66,158.62,6.3043]
[1724721405797,6.3023,158.68,158.63,1.26059638]
[1724721405978,12.258608,158.66,158.63,1.26059638]
[1724721406174,12.258608,158.66,158.63,7.56449638]
[1724721406379,6.0914,158.71,158.63,15.7595]
[1724721406585,12.258608,158.68,158.63,15.7595]
[1724721406778,0.50820453,158.71,158.63,15.7595]
[1724721406983,12.258608,158.68,158.63,15.7595]
[1724721408771,12.258608,158.68,158.63,22.0634]
[1724721409110,6.302,158.68,158.63,22.0634]
[1724721409268,12.258608,158.65,158.63,15.7595]
[1724721409468,12.258608,158.65,158.63,17.02010571]
[1724721409668,12.258608,158.65,158.59,37.482]
[1724721410093,12.258608,158.65,158.61,6.3044]
[1724721411289,12.258608,158.65,158.62,1.26063448]
[1724721411684,12.258608,158.65,158.61,6.3044]
[1724721411881,12.258608,158.66,158.62,17.0215351]
[1724721412082,12.258608,158.66,158.62,15.7609]
[1724721412792,12.258608,158.66,158.63,6.3039]
[1724721413693,0.50820453,158.69,158.62,15.7609]
[1724721414010,12.258608,158.65,158.62,22.0651]
[1724721414303,6.302,158.68,158.62,22.0651]
[1724721414611,12.258608,158.66,158.62,22.0651]
[1724721414773,6.3024,158.67,158.62,22.0651]
[1724721415090,12.258608,158.65,158.62,22.0651]
[1724721416397,12.258608,158.65,158.63,1.26060553]
[1724721416793,12.258608,158.65,158.62,22.0651]
[1724721417187,6.303,158.66,158.6,6.3051]
[1724721417393,12.258608,158.64,158.6,6.3051]
[1724721417978,12.258608,158.62,158.58,15.764]
[1724721418294,12.258608,158.6,158.58,15.764]
[1724721419686,12.258608,158.6,158.55,6.3068]
[1724721419880,12.258608,158.58,158.55,6.3068]
[1724721420295,6.3049,158.61,158.56,6.3067]
[1724721420493,15.5678,158.63,158.57,7.56733878]
[1724721420699,32.258608,158.62,158.58,1.26091576]
[1724721420875,32.258608,158.62,158.57,6.3063]
[1724721421079,32.258608,158.62,158.58,1.26095225]
[1724721421879,12.258608,158.64,158.6,6.305]
[1724721422091,12.258608,158.64,158.61,1.2607457]
[1724721422484,12.258608,158.64,158.59,6.3055]
[1724721423092,12.258608,158.64,158.6,6.3051]
[1724721423500,21.8705,158.67,158.61,1.26072902]
[1724721423806,12.258608,158.65,158.61,1.26072902]
[1724721423985,20.0,158.64,158.61,7.56542902]
[1724721424302,20.0,158.66,158.61,7.56542902]
[1724721424702,20.0,158.66,158.61,6.3047]
[1724721428240,20.0,158.66,158.63,6.3038]
[1724721428506,20.0,158.67,158.63,6.3038]
[1724721428893,30.57882613,158.69,158.63,15.759]
[1724721429108,36.88032613,158.69,158.64,6.3035]
[1724721430289,20.0,158.68,158.64,6.3035]
[1724721434791,20.0,158.68,158.65,1.26040461]
[1724721435201,20.0,158.68,158.64,6.3035]
[1724721435601,30.57882613,158.71,158.65,6.3031]
[1724721435905,15.96210453,158.75,158.66,1.26024601]
[1724721435906,30.57882613,158.73,158.66,1.26024601]
[1724721436107,30.57882613,158.73,158.67,6.3023]
[1724721436308,30.57882613,158.73,158.68,1.26014318]
[1724721436521,30.57882613,158.73,158.67,6.3023]
[1724721436685,36.87912613,158.73,158.67,6.3023]
[1724721437312,26.3006,158.72,158.67,6.3023]
[1724721437814,26.80880453,158.72,158.67,6.3023]
[1724721438024,26.80880453,158.72,158.65,15.757]
[1724721438025,26.80880453,158.72,158.66,6.3027]
[1724721438817,26.3006,158.72,158.67,1.26026534]
[1724721439216,26.3006,158.72,158.66,6.3027]